Cogmind - Beta 17.1 @@@ ROGUE MODE // 2026.09.04 @ 11:06:14 Player: C0-2MO Result: Escaped! Performance ------------- Evolutions (9) 4500 Regions Visited (12) 2400 Robots Destroyed (9) 45 Value Destroyed (272) 272 Prototype IDs (9) 180 Alien Tech Used (0) 0 Bonus (25958) 25958 TOTAL SCORE: 33355 Bonus ------- Pacifist 834 High Alert Combat Kills 10 Follower Combat Kills 42 Entered DSFs 500 Win 3000 Win Speed 21572 Cogmind --------- Core Integrity 966/1600 Matter 275/300 Energy 194/220 System Corruption 0% Temperature Hot (250) Movement Flying (6) Location To Epsilon Eridani Parts ------- > --- POWER (3) -------- Light Antimatter Reactor Micro Antimatter Reactor > --- PROPULSION (12) -- Antigrav Array Combat Linear Gravjet Xenon Bombardment Thruster Xenon Bombardment Thruster Impulse Thruster Cooled Field Propulsion Drive Cooled Q-thruster Cooled Q-thruster Cooled Q-thruster > --- UTILITY (8) ------ Structural Scanner Enhanced Optical Array Graphene Brace Hacking Suite Hacking Suite > --- WEAPON (2) ------- Enhanced Nova Cannon > --- INVENTORY (5) ---- Reinforced Quantum Reactor Improved Heavy Treads Peak State ------------ > --- POWER ------------ Light Antimatter Reactor Micro Antimatter Reactor > --- PROPULSION ------- Antigrav Array Combat Linear Gravjet Xenon Bombardment Thruster Xenon Bombardment Thruster Impulse Thruster Cooled Field Propulsion Drive Cooled Q-thruster Cooled Q-thruster Cooled Q-thruster > --- UTILITY ---------- Structural Scanner Enhanced Optical Array Graphene Brace Hacking Suite Hacking Suite > --- WEAPON ----------- Enhanced Nova Cannon > --- INVENTORY -------- Reinforced Quantum Reactor Improved Heavy Treads [Rating: 123] Favorites ----------- Power Micro Antimatter Reactor Engine Light Deuterium Engine Power Core Micro Nuclear Core Reactor Micro Antimatter Reactor Propulsion Combat Linear Gravjet Treads Light Treads Hover Unit Combat Linear Gravjet Flight Unit Cooled Nuclear Pulse Thruster Utility Hacking Suite Device Graphene Brace Processor Enhanced Optical Array Hackware Hacking Suite Weapon Matter Neutralizer Energy Gun Enhanced Quantum Rifle Energy Cannon Matter Neutralizer Slashing Weapon Katana Build | -11 -10 -10 -9 -8 -7 -6 -5 -4 -4 -3 -2 -1 ------- Run | Yrd Mat Min Mat Mat Fac Fac Fac Fac DSF Res Res Acc Slots Evolved 18 | . . . 2 2 2 2 2 2 . 2 2 2 Power 2 | . . . . . 1 . . 1 . . . . Propulsion 10 | . . . 2 1 1 1 1 1 . 2 1 . Utility 6 | . . . . 1 . 1 1 . . . 1 2 Weapon . | . . . . . . . . . . . . . Parts Attached 43 | 2 . . 1 2 4 3 3 . 2 3 7 16 Power 8 | . . . . . 1 1 . . 1 1 1 3 Engine 1 | . . . . . . 1 . . . . . . Core 1 | . . . . . 1 . . . . . . . Reactor 6 | . . . . . . . . . 1 1 1 3 Propulsion 21 | 2 . . 1 2 1 . 3 . . 1 3 8 Treads 4 | 2 . . 1 . . . . . . . . 1 Leg . | . . . . . . . . . . . . . Wheel . | . . . . . . . . . . . . . Hover 2 | . . . . . . . . . . . 1 1 Flight 15 | . . . . 2 1 . 3 . . 1 2 6 Utility 10 | . . . . . 1 2 . . 1 1 3 2 Device 4 | . . . . . . . . . . 1 2 1 Storage . | . . . . . . . . . . . . . Processor 2 | . . . . . . . . . 1 . . 1 Hackware 4 | . . . . . 1 2 . . . . 1 . Protection . | . . . . . . . . . . . . . Artifact . | . . . . . . . . . . . . . Weapon 4 | . . . . . 1 . . . . . . 3 Energy Gun 1 | . . . . . . . . . . . . 1 Energy Cannon 2 | . . . . . . . . . . . . 2 Ballistic Gun . | . . . . . . . . . . . . . Ballistic Cannon . | . . . . . . . . . . . . . Launcher . | . . . . . . . . . . . . . Special Weapon . | . . . . . . . . . . . . . Impact Weapon . | . . . . . . . . . . . . . Slashing Weapon 1 | . . . . . 1 . . . . . . . Piercing Weapon . | . . . . . . . . . . . . . Special Melee Weapon . | . . . . . . . . . . . . . Unidentified Prototypes 5 | . . . . 1 . . 1 . . 1 1 1 Parts Lost 18 | . . . . 3 . . 3 . 2 4 2 4 Power 2 | . . . . . . . 1 . . . . 1 Propulsion 10 | . . . . 3 . . 2 . 1 3 . 1 Utility 4 | . . . . . . . . . . 1 2 1 Weapon 2 | . . . . . . . . . 1 . . 1 Highest Loss Streak 4 | . . . . 3 . . 2 . 3 4 1 2 To Critical Strikes . | . . . . . . . . . . . . . Average Backups 1 | . . . . 1 1 1 1 1 2 2 . 1 Power . | . . . . . . . . . 1 1 . . Propulsion . | . . . . . . . . . . . . . Utility . | . . . . 1 1 1 1 1 1 1 . . Weapon . | . . . . . . . . . . . . . Tool/Special . | . . . . . . . . . . . . . Unused Backups . | . . . . . . . . . . . . . Power . | . . . . . . . . . . . . . Propulsion . | . . . . . . . . . . . . . Utility . | . . . . . . . . . . . . . Weapon . | . . . . . . . . . . . . . Tool/Special . | . . . . . . . . . . . . . Average Slot Usage (%) 37 | . 28 28 28 15 37 51 58 42 43 29 33 46 Reactor 2 | . . . . . . . . . 3 2 3 3 Treads 5 | . 28 28 28 11 . . . . . . . . Hover 2 | . . . . . . . . . . . 3 7 Flight 10 | . . . . 4 23 20 26 21 18 7 5 11 Device 3 | . . . . . . . . . . . 6 8 Processor 1 | . . . . . . . . . 2 3 . 3 Hackware 8 | . . . . . 6 15 17 15 15 14 13 8 Slashing Weapon 1 | . . . . . 6 6 5 5 2 . . . Peak Build Rating 123 | 2 2 2 4 7 18 27 48 37 46 48 57 123 Average Rating 45 | 1 2 2 3 3 13 24 41 37 42 35 49 84 On Entrance 17 | . 2 2 2 4 7 18 27 37 37 32 11 54 Avg Prop Armor Cover (%) 16 | 41 41 41 42 40 . . 3 6 6 . 7 13 Naked Turns 12 | . . . . 12 . . . . . . . . Heaviest Build 35 | . . . . . 8 13 13 2 10 8 10 35 Greatest Support 59 | 3 3 3 3 10 14 14 26 17 17 20 22 59 Greatest Overweight (x) . | . . . . . . . . . . . . . Average Overweight (x) . | . . . . . . . . . . . . . Largest Inventory Capacity 5 | 5 5 5 5 5 5 5 5 5 5 5 5 5 Average Capacity 5 | 5 5 5 5 5 5 5 5 5 5 5 5 5 Most Carried 5 | . . . 1 2 1 1 1 1 3 5 3 4 Average Carried 1 | . . . . 1 1 1 1 1 2 2 . 1 Final Capacity 5 | 5 5 5 5 5 5 5 5 5 5 5 5 5 Final Carried 5 | . . . 1 2 1 1 1 1 3 5 1 3 Class Distribution -------------------- 42% | Hacker-Mutant 29% | Hacker-Sprinter 19% | Mutant 8% | Sprinter Dominant Class ---------------- Mutant | -10/Materials Mutant | -10/Mines Mutant | -9/Materials Mutant | -8/Materials Sprinter | -7/Factory Sprinter | -6/Factory Hacker-Sprinter | -5/Factory Hacker-Sprinter | -4/Factory Hacker-Sprinter | -4/DSF Hacker-Sprinter | -3/Research Hacker-Mutant | -2/Research Hacker-Mutant | -1/Access Resources | -11 -10 -10 -9 -8 -7 -6 -5 -4 -4 -3 -2 -1 ----------- Run | Yrd Mat Min Mat Mat Fac Fac Fac Fac DSF Res Res Acc Matter Collected 594 | 220 . . . . 43 26 . . 95 20 60 130 Remotely . | . . . . . . . . . . . . . Salvage Created 313 | . . . . . 43 26 . . . . . 244 Parts 15 | . . . . . 3 3 . . . . . 9 Haulers Intercepted 1 | . . . . . . . . . . . . 1 Recyclers Shooed . | . . . . . . . . . . . . . Parts Field Recycled . | . . . . . . . . . . . . . Retrieved Matter . | . . . . . . . . . . . . . Parts Self-Destructed . | . . . . . . . . . . . . . Prevented . | . . . . . . . . . . . . . Parts Restored . | . . . . . . . . . . . . . Kills | -11 -10 -10 -9 -8 -7 -6 -5 -4 -4 -3 -2 -1 ------- Run | Yrd Mat Min Mat Mat Fac Fac Fac Fac DSF Res Res Acc Combat Hostiles Destroyed 5 | . . . . . . . . . . . . 5 Cannons 5 | . . . . . . . . . . . . 5 Classes Destroyed 5 | . . . . . 2 1 . . . . . 2 Worker 1 | . . . . . 1 . . . . . . . Tunneler 1 | . . . . . 1 . . . . . . . Hauler 1 | . . . . . . . . . . . . 1 Operator 1 | . . . . . . 1 . . . . . . Swarmer 5 | . . . . . . . . . . . . 5 Best Kill Streak 5 | . . . . . 2 3 . . . . . 5 Combat Bots Only 5 | . . . . . . . . . . . . 5 Max Kills in Single Turn 1 | . . . . . 1 1 . . . . . 1 Gunslinging . | . . . . . . . . . . . . . Exploded . | . . . . . . . . . . . . . Melee . | . . . . . . . . . . . . . Uniques/NPCs Destroyed . | . . . . . . . . . . . . . Combat | -11 -10 -10 -9 -8 -7 -6 -5 -4 -4 -3 -2 -1 -------- Run | Yrd Mat Min Mat Mat Fac Fac Fac Fac DSF Res Res Acc Hostile Shots Fired 423 | . 5 26 23 79 . . 27 . 10 76 37 140 Missed 219 | . 1 5 8 43 . . 11 . 4 40 22 85 Hits 204 | . 4 21 15 36 . . 16 . 6 36 15 55 Melee 5 | . . . . . . . 3 . 2 . . . Projectile 199 | . 4 21 15 36 . . 13 . 4 36 15 55 AOE 2 | . . . . . . . 2 . . . . . Critical Strikes 15 | . . . . 1 . . 4 . 2 4 1 3 Actively Blocked 4 | . . . . . . . . . . . 1 3 Damage Taken 4429 | . 51 215 181 401 . . 485 . 347 1052 326 1371 Core 2584 | . 12 90 25 233 . . 299 . 275 880 136 634 Absorbed by Shields . | . . . . . . . . . . . . . Regen/Repaired (Parts) 34 | . . . . . . . 20 . . . . 14 Core Remaining (%) 76 | 100 . 59 93 57 100 100 70 . 76 32 90 60 Volleys Fired 25 | . . . . . . . . . . . . 25 Largest 1 | . . . . . . . . . . . . 1 Hottest 120 | . . . . . . . . . . . . 120 Shots Fired 25 | . . . . . . . . . . . . 25 Gun 3 | . . . . . . . . . . . . 3 Cannon 22 | . . . . . . . . . . . . 22 Launcher . | . . . . . . . . . . . . . Special . | . . . . . . . . . . . . . Kinetic . | . . . . . . . . . . . . . Thermal 25 | . . . . . . . . . . . . 25 Explosive . | . . . . . . . . . . . . . Electromagnetic . | . . . . . . . . . . . . . Robot Hit Streak 4 | . . . . . . . . . . . . 4 Robot Miss Streak 3 | . . . . . . . . . . . . 3 Penetration Max . | . . . . . . . . . . . . . Secondary Targets . | . . . . . . . . . . . . . Shots Hit Robots 16 | . . . . . 3 1 1 . . . . 11 Core Hits 12 | . . 3 . . 1 1 . . . . . 7 Critical Kills . | . . . . . . . . . . . . . Critical Parts Destroyed . | . . . . . . . . . . . . . Critical Strikes 1 | . . . . . . . 1 . . . . . Sever 1 | . . . . . . . 1 . . . . . Melee Attacks 8 | . . . . . 3 1 4 . . . . . Impact . | . . . . . . . . . . . . . Slashing 8 | . . . . . 3 1 4 . . . . . Piercing . | . . . . . . . . . . . . . Sneak Attacks 4 | . . . . . 3 . 1 . . . . . Combat Hostiles . | . . . . . . . . . . . . . Follow-up Attacks . | . . . . . . . . . . . . . Damage Inflicted 811 | . . 44 13 . 210 46 78 . . 1 . 419 Guns 91 | . . . . . . . . . . . . 91 Cannons 328 | . . . . . . . . . . . . 328 Explosions . | . . . . . . . . . . . . . Melee 334 | . . . . . 210 46 78 . . . . . Ramming 58 | . . 44 13 . . . . . . 1 . . Kinetic . | . . . . . . . . . . . . . Thermal 419 | . . . . . . . . . . . . 419 Explosive . | . . . . . . . . . . . . . Electromagnetic . | . . . . . . . . . . . . . Impact . | . . . . . . . . . . . . . Slashing 334 | . . . . . 210 46 78 . . . . . Piercing . | . . . . . . . . . . . . . Highest Corruption 1 | . . . . . . . 1 . . 1 . . Average Corruption 1 | . . . . . . . 1 . . 1 . . Corruption Purged . | . . . . . . . . . . . . . Corruption Blocked 2 | . . . . . . . . . . 2 . . Effects 1 | . . . . . . . 1 . . . . . Energy Discharges 1 | . . . . . . . 1 . . . . . Overload Shots . | . . . . . . . . . . . . . Overflow Damage 84 | . . . . . 77 . . . . . . 7 Projectiles 7 | . . . . . . . . . . . . 7 Explosions . | . . . . . . . . . . . . . Melee 77 | . . . . . 77 . . . . . . . Knockbacks 1 | . . . . . . . . . . 1 . . Impact 1 | . . . . . . . . . . 1 . . Kinetic . | . . . . . . . . . . . . . Secondary . | . . . . . . . . . . . . . Self-Inflicted Damage 23 | . . 17 6 . . . . . . . . . Shots . | . . . . . . . . . . . . . Rammed 27 | . . 22 4 . . . . . . 1 . . Targets Rammed 27 | . . 22 4 . . . . . . 1 . . Kicked . | . . . . . . . . . . . . . Crushed . | . . . . . . . . . . . . . Highest Temperature 440 | . . . . 4 . . 440 . . . . 273 Average Temperature 129 | . . . . 4 . . 222 . . . . 99 Received Heat Transfer 372 | . 30 15 90 117 . . 39 . . 18 45 18 Effects 4 | . . . . . . . 4 . . . . . Shutdowns 2 | . . . . . . . 2 . . . . . Energy Bleed 1 | . . . . . . . 1 . . . . . Matter Decay 1 | . . . . . . . 1 . . . . . Siege Activations . | . . . . . . . . . . . . . Martial Activations . | . . . . . . . . . . . . . Shielding Activations . | . . . . . . . . . . . . . Robots Disrupted . | . . . . . . . . . . . . . Combat Hostiles . | . . . . . . . . . . . . . Robots Corrupted . | . . . . . . . . . . . . . Combat Hostiles . | . . . . . . . . . . . . . Parts Fried . | . . . . . . . . . . . . . Impact Corruptions . | . . . . . . . . . . . . . Robots Melted . | . . . . . . . . . . . . . Combat Hostiles . | . . . . . . . . . . . . . Parts Melted 2 | . . . . . . . . . . . . 2 Heat Transferred 444 | . . . . . . . . . . . . 444 Parts Sabotaged . | . . . . . . . . . . . . . Parts Stolen . | . . . . . . . . . . . . . Parts Stripped . | . . . . . . . . . . . . . Power Chain Reactions . | . . . . . . . . . . . . . Alert | -11 -10 -10 -9 -8 -7 -6 -5 -4 -4 -3 -2 -1 ------- Run | Yrd Mat Min Mat Mat Fac Fac Fac Fac DSF Res Res Acc Maximum Alert Level 2 | . . . . . . . . . . . . 2 Low Security (%) 84 | 100 100 100 100 100 100 100 100 100 100 100 100 52 Level 1 13 | . . . . . . . . . . . . 40 Level 2 2 | . . . . . . . . . . . . 7 Level 3 . | . . . . . . . . . . . . . Level 4 . | . . . . . . . . . . . . . Level 5 . | . . . . . . . . . . . . . High Security . | . . . . . . . . . . . . . Max Security . | . . . . . . . . . . . . . Peak Influence 440 | . . 120 57 43 64 30 27 10 7 38 126 440 Initial 69 | . . . 42 24 14 25 9 10 7 . . 69 Average 88 | . . 56 35 18 39 27 9 10 2 5 34 218 Influence Increases 1307 | . . 160 45 53 70 5 54 . . 58 181 681 Destroy 0b10 Robot/C 220 | . . 120 . . . . . . . . . 100 Destroy 0b10 Robot/NC 20 | . . . . . 10 5 . . . . . 5 Destroy Leader 32 | . . 20 . . . . . . . . . 12 Allied During Kill 20 | . . 20 . . . . . . . . . . Successful Hack 103 | . . . . 8 . . 3 . . 28 46 18 Disable Machine 15 | . . . . . . . . . . . . 15 Destroy Structure 102 | . . . . . . . 6 . . . . 96 Partial Spotted 45 | . . . . 15 . . 15 . . . . 15 Lose Combat Pursuer 750 | . . . 45 30 60 . 30 . . 30 135 420 Influence Decreases 877 | . . 50 98 77 49 39 52 12 10 58 65 367 Entered New Map 222 | . . . 68 33 19 29 11 12 3 . . 47 Time Decay 409 | . . 30 30 30 30 10 29 . . 20 50 180 Search Patrol Dispatched 100 | . . . . . . . . . . . . 100 Lost Part 126 | . . . . 14 . . 12 . 7 38 15 40 Lost Ally 20 | . . 20 . . . . . . . . . . Squads Dispatched 22 | . 1 . 1 1 . . 4 . 1 1 5 8 Investigation 11 | . 1 . . 1 . . 2 . . . 3 4 Extermination 4 | . . . . . . . 1 . . . 1 2 Reinforcement 7 | . . . 1 . . . 1 . 1 1 1 2 Assault . | . . . . . . . . . . . . . Garrison . | . . . . . . . . . . . . . Intercept . | . . . . . . . . . . . . . Searches Triggered 1 | . . . . . . . . . . . . 1 Construction Impeded . | . . . . . . . . . . . . . Haulers Reinforced 1 | . . . . . . . . . . . . 1 Active Scanning Responses . | . . . . . . . . . . . . . Cargo Convoy Interrupts . | . . . . . . . . . . . . . Stealth | -11 -10 -10 -9 -8 -7 -6 -5 -4 -4 -3 -2 -1 --------- Run | Yrd Mat Min Mat Mat Fac Fac Fac Fac DSF Res Res Acc Distress Signals 9 | . . . 2 2 . . . . . 1 2 2 Communications Jammed . | . . . . . . . . . . . . . Distress Signals . | . . . . . . . . . . . . . Times Spotted 151 | . 3 6 14 13 2 1 14 . 5 21 20 52 Peak Tracking Total 23 | . 3 3 12 10 4 1 12 . 5 15 11 23 Tactical Retreats 15 | . . . 1 1 1 . 1 . . 1 3 7 Traps | -11 -10 -10 -9 -8 -7 -6 -5 -4 -4 -3 -2 -1 ------- Run | Yrd Mat Min Mat Mat Fac Fac Fac Fac DSF Res Res Acc Traps Triggered 1 | . 1 . . . . . . . . . . . Indirectly . | . . . . . . . . . . . . . Trap Hack Attempts . | . . . . . . . . . . . . . Triggered . | . . . . . . . . . . . . . Disarmed . | . . . . . . . . . . . . . Reprogrammed . | . . . . . . . . . . . . . Reused . | . . . . . . . . . . . . . Traps Extracted . | . . . . . . . . . . . . . Installed . | . . . . . . . . . . . . . Triggered . | . . . . . . . . . . . . . Machines | -11 -10 -10 -9 -8 -7 -6 -5 -4 -4 -3 -2 -1 ---------- Run | Yrd Mat Min Mat Mat Fac Fac Fac Fac DSF Res Res Acc Machines Disabled 1 | . . . . . . . . . . . . 1 Max in Single Turn 1 | . . . . . . . . . . . . 1 Energy Cycler 1 | . . . . . . . . . . . . 1 Machines Repaired . | . . . . . . . . . . . . . Machines Dismantled . | . . . . . . . . . . . . . Machines Sabotaged . | . . . . . . . . . . . . . Overloaded Fab Kills . | . . . . . . . . . . . . . Hacking | -11 -10 -10 -9 -8 -7 -6 -5 -4 -4 -3 -2 -1 --------- Run | Yrd Mat Min Mat Mat Fac Fac Fac Fac DSF Res Res Acc Machines Accessed 19 | . . . 1 1 . . 4 1 . 4 4 4 Terminals 15 | . . . 1 1 . . 2 1 . 4 3 3 Fabricators . | . . . . . . . . . . . . . Repair Stations 2 | . . . . . . . 1 . . . . 1 Recycling Units . | . . . . . . . . . . . . . Scanalyzers 2 | . . . . . . . 1 . . . 1 . Garrison Access . | . . . . . . . . . . . . . Total Hacks 55 | . . . 6 6 . . 12 3 . 7 12 9 Successful 23 | . . . 2 1 . . 6 1 . 5 6 2 Failed 31 | . . . 4 5 . . 6 2 . 2 5 7 Catastrophic 6 | . . . . 2 . . . . . 1 1 2 Database Lockouts 1 | . . . . . . . . . . . 1 . Manual 24 | . . . 3 3 . . 6 . . 3 3 6 Terminals 47 | . . . 6 6 . . 8 3 . 7 9 8 Fabricators . | . . . . . . . . . . . . . Repair Stations 2 | . . . . . . . 1 . . . . 1 Recycling Units . | . . . . . . . . . . . . . Scanalyzers 6 | . . . . . . . 3 . . . 3 . Garrison Access . | . . . . . . . . . . . . . Terminal Hacks 10 | . . . 1 1 . . 1 1 . 3 3 . Prototype ID Bank 1 | . . . . . . . . . . 1 . . Open DSF 2 | . . . . . . . . 1 . 1 . . Level Access Points 4 | . . . . 1 . . 1 . . 1 1 . Emergency Access Points 1 | . . . . . . . . . . . 1 . Terminal Index 1 | . . . . . . . . . . . 1 . Zone Layout 1 | . . . 1 . . . . . . . . . Fabricator Hacks . | . . . . . . . . . . . . . Repair Station Hacks . | . . . . . . . . . . . . . Recycling Unit Hacks . | . . . . . . . . . . . . . Scanalyzer 5 | . . . . . . . 3 . . . 2 . Insert Component 1 | . . . . . . . . . . . 1 . Retrieve Study 4 | . . . . . . . 3 . . . 1 . Garrison Access Hacks . | . . . . . . . . . . . . . Unauthorized Hacks 8 | . . . 1 . . . 2 . . 2 1 2 Terminals 6 | . . . 1 . . . 1 . . 2 1 1 Botnet 6 | . . . 1 . . . 1 . . 2 1 1 Fabricators . | . . . . . . . . . . . . . Repair Stations 2 | . . . . . . . 1 . . . . 1 Patch 2 | . . . . . . . 1 . . . . 1 Recycling Units . | . . . . . . . . . . . . . Scanalyzers . | . . . . . . . . . . . . . Garrison Access . | . . . . . . . . . . . . . Data Cores Recovered 1 | . . . . . . 1 . . . . . . Used . | . . . . . . . . . . . . . Hacking Detections 12 | . . . 1 1 . . 2 . . 2 3 3 Full Trace Events 8 | . . . . 1 . . 1 . . . 3 3 Feedback Events 1 | . . . . . . . . . . . 1 . Hackware Fried 1 | . . . . . . . . . . . 1 . Feedback Blocked . | . . . . . . . . . . . . . Robot Schematics Acquired . | . . . . . . . . . . . . . Robots Built . | . . . . . . . . . . . . . Authchips . | . . . . . . . . . . . . . Time . | . . . . . . . . . . . . . Total Robot Build Rating . | . . . . . . . . . . . . . Part Schematics Acquired . | . . . . . . . . . . . . . Parts Built . | . . . . . . . . . . . . . Authchips . | . . . . . . . . . . . . . Time . | . . . . . . . . . . . . . Total Part Build Rating . | . . . . . . . . . . . . . Part Studies Acquired 4 | . . . . . . . 3 . . . 1 . Parts Repaired . | . . . . . . . . . . . . . Time . | . . . . . . . . . . . . . Parts Recycled . | . . . . . . . . . . . . . Recycled Matter . | . . . . . . . . . . . . . Retrieved Matter . | . . . . . . . . . . . . . Retrieved Components . | . . . . . . . . . . . . . Parts Scanalyzed . | . . . . . . . . . . . . . Part Schematics Acquired . | . . . . . . . . . . . . . Parts Damaged . | . . . . . . . . . . . . . Bothacking | -11 -10 -10 -9 -8 -7 -6 -5 -4 -4 -3 -2 -1 ------------ Run | Yrd Mat Min Mat Mat Fac Fac Fac Fac DSF Res Res Acc Used RIF Installer . | . . . . . . . . . . . . . Robots Hacked . | . . . . . . . . . . . . . Non-combat . | . . . . . . . . . . . . . Combat . | . . . . . . . . . . . . . Robot Hacks Applied . | . . . . . . . . . . . . . Relay Couplers Released . | . . . . . . . . . . . . . Fabnet Peak Effective % . | . . . . . . . . . . . . . Robots Rewired . | . . . . . . . . . . . . . Allies Hacked . | . . . . . . . . . . . . . Hacks Repelled . | . . . . . . . . . . . . . Allies | -11 -10 -10 -9 -8 -7 -6 -5 -4 -4 -3 -2 -1 -------- Run | Yrd Mat Min Mat Mat Fac Fac Fac Fac DSF Res Res Acc Total Allies 3 | . . 3 . . . . . . . . . . Largest Group 3 | . . 3 . . . . . . . . . . Highest-Rated Group 40 | . . 40 . . . . . . . . . . Highest-Rated Ally 16 | . . 16 . . . . . . . . . . Total Orders . | . . . . . . . . . . . . . Ally Attacks 19 | . . 19 . . . . . . . . . . Total Damage 162 | . . 162 . . . . . . . . . . Kills 6 | . . 6 . . . . . . . . . . Allies Corrupted . | . . . . . . . . . . . . . Allies Melted . | . . . . . . . . . . . . . Intel | -11 -10 -10 -9 -8 -7 -6 -5 -4 -4 -3 -2 -1 ------- Run | Yrd Mat Min Mat Mat Fac Fac Fac Fac DSF Res Res Acc Active Infowar (turns) 363 | . . . . . . . . . . . . 363 Optics 363 | . . . . . . . . . . . . 363 Structural 95 | . . . . . . . . . . . . 95 Robot Analysis Total . | . . . . . . . . . . . . . Derelict Logs Recovered . | . . . . . . . . . . . . . Drone Launches . | . . . . . . . . . . . . . Drone Recoveries . | . . . . . . . . . . . . . Exploration | -11 -10 -10 -9 -8 -7 -6 -5 -4 -4 -3 -2 -1 ------------- Run | Yrd Mat Min Mat Mat Fac Fac Fac Fac DSF Res Res Acc Turns Passed 1128 | 15 15 85 68 75 64 24 87 5 32 129 160 369 Spaces Moved 2711 | 24 30 109 124 169 168 57 268 14 94 358 391 905 Core 400 | 24 30 109 124 85 . . . . . 28 . . Treads . | . . . . . . . . . . . . . Legs . | . . . . . . . . . . . . . Wheels . | . . . . . . . . . . . . . Hover 3 | . . . . . . . . . . . . 3 Flight 2308 | . . . . 84 168 57 268 14 94 330 391 902 Fastest Speed 6 | 50 50 50 50 32 30 30 24 29 29 30 37 6 Average Speed 34 | 50 50 50 50 41 30 30 26 29 29 33 38 31 Slowest Speed 56 | 50 50 50 50 50 30 30 30 29 32 50 40 56 Overloaded Moves 4 | . . . . . . . . . . . . 4 Propulsion Burnouts . | . . . . . . . . . . . . . Robots Hopped 49 | . . . . 4 . . 4 . 1 9 13 18 Potential Cave-ins . | . . . . . . . . . . . . . Cave-ins Triggered . | . . . . . . . . . . . . . Exploration Rate (%) 19 | 4 10 24 17 24 7 2 14 1 82 21 19 23 Regions Visited 12 Branch Regions 1 Pre-discovered Areas . | . . . . . . . . . . . . . Known Exits Taken 5 | . . . . 1 . . 1 1 . 1 1 . Unknown Exits Taken 6 | 1 1 1 1 . 1 1 . . . . . . Scrap Searched 1 | . . 1 . . . . . . . . . . Spaces Dug 8 | . . . . . . . 3 . . . . 5 Terrain Destroyed 43 | . . . . . . . 3 . . . . 40 Melee 3 | . . . . . . . 3 . . . . . Projectile 8 | . . . . . . . . . . . . 8 AOE 32 | . . . . . . . . . . . . 32 Terrain Rammed . | . . . . . . . . . . . . . Walls Destroyed . | . . . . . . . . . . . . . Machines Disabled . | . . . . . . . . . . . . . Actions | -11 -10 -10 -9 -8 -7 -6 -5 -4 -4 -3 -2 -1 --------- Run | Yrd Mat Min Mat Mat Fac Fac Fac Fac DSF Res Res Acc Total 2782 | 25 29 132 129 167 174 60 271 14 96 357 385 943 Wait 12 | . . 2 . . . . . . . . . 10 Move 2609 | 23 29 108 124 160 167 56 259 14 91 340 366 872 Hop 43 | . . . . 4 . . 4 . 1 9 11 14 Pick Up 10 | . . . 1 1 . . . . 2 2 1 3 Fast Attach 34 | 2 . . 1 2 3 3 4 . 2 2 3 12 Attach 10 | . . . . . 1 . . . . 1 4 4 Detach 3 | . . . . . . . . . . 1 . 2 Swap . | . . . . . . . . . . . . . Drop 3 | . . . . . . . . . . 2 . 1 Fire 25 | . . . . . . . . . . . . 25 Melee 8 | . . . . . 3 1 4 . . . . . Ram 15 | . . 12 3 . . . . . . . . . Kick . | . . . . . . . . . . . . . Crush 10 | . . 10 . . . . . . . . . . Escape Stasis . | . . . . . . . . . . . . . Rewire . | . . . . . . . . . . . . . Trap . | . . . . . . . . . . . . . Miscellaneous . | . . . . . . . . . . . . . Route ------- -11/Scrapyard -10/Materials -10/Mines -9/Materials -8/Materials (discovered 3 exits: *Fac x3) -7/Factory -6/Factory -5/Factory (discovered 4 exits: *Fac x4) -4/Factory -4/DSF -3/Research (discovered 3 exits: *Res x3) -2/Research (discovered 3 exits: *Acc x3) -1/Access To Epsilon Eridani History --------- Turn | Location | Event 9 | -11/Scrapyard | Discovered new exit (range 15) 16 | -11/Scrapyard | Entered Materials 29 | -10/Materials | Discovered new exit (range 6) 31 | -10/Materials | Entered Mines 39 | -10/Mines | Assisted by bots powering up and referring to "LRC-V3" 103 | -10/Mines | Found a hidden stash of uninstalled traps 108 | -10/Mines | Met a Derelict bent on vengeance 113 | -10/Mines | Discovered new exit (range 7) 116 | -10/Mines | Entered Materials 116 | -9/Materials | Evolved 2 slots: Propulsion x2 181 | -9/Materials | Discovered new exit (range 8) 184 | -9/Materials | Entered another Materials area 184 | -8/Materials | Evolved 2 slots: Propulsion x1, Utility x1 242 | -8/Materials | Identified exit to Factory 247 | -8/Materials | Lost 3 parts (3n) 259 | -8/Materials | Entered Factory 259 | -7/Factory | Evolved 2 slots: Power x1, Propulsion x1 310 | -7/Factory | Discovered new exit (range 11) 323 | -7/Factory | Entered another Factory area 323 | -6/Factory | Evolved 2 slots: Propulsion x1, Utility x1 344 | -6/Factory | Discovered new exit (range 10) 347 | -6/Factory | Entered another Factory area 347 | -5/Factory | Evolved 2 slots: Propulsion x1, Utility x1 393 | -5/Factory | Identified exit to Factory 434 | -5/Factory | Entered another Factory area 434 | -4/Factory | Evolved 2 slots: Power x1, Propulsion x1 439 | -4/Factory | Identified exit to DSF 439 | -4/Factory | Entered DSF 462 | -4/DSF | Additional patrols routed to DSF 467 | -4/DSF | Discovered new exit (range 16) 471 | -4/DSF | Entered Research 471 | -3/Research | Evolved 2 slots: Propulsion x2 482 | -3/Research | Lost 3 parts (2n1w) 531 | -3/Research | Spotted B-86 Titan 565 | -3/Research | Identified exit to Research 595 | -3/Research | Core integrity fell below 50% 600 | -3/Research | Entered another Research area 600 | -2/Research | Evolved 2 slots: Propulsion x1, Utility x1 615 | -2/Research | Lost 4 parts (3n1u) 663 | -2/Research | Spotted B-90 Cyclops 694 | -2/Research | Central database locked down 722 | -2/Research | Identified exit to Access 722 | -2/Research | Hacking Suite fried by hacking feedback 760 | -2/Research | Entered Access 760 | -1/Access | Evolved 2 slots: Utility x2 813 | -1/Access | Energy Cycler disabled 842 | -1/Access | Spotted B-99 Colossus 849 | -1/Access | Build established: Hacker-Mutant 1010 | -1/Access | Search patrols dispatched 1129 | -1/Access | Discovered new exit (range 6) 1129 | *** | Escaped! Last Messages --------------- PATCHED[Xenon Bombardment Thruster] PATCHED[Xenon Bombardment Thruster] 01079_ ALERT: Suspicious activity at Repair Station A003. Dispatching Investigation squad. 01081_ Penetrated by Slug. 01091_ Acquired Impulse Thruster. 01091_ Slug penetrates K-01 Serf. 01095_ Penetrated by Slug. 01096_ O-32 Director: "IFF HANDSHAKE FAILED. SECURING TERMINAL." 01101_ Connecting with Terminal... 01101_ ALERT: Suspicious activity at Terminal A018. Dispatching Investigation squad. 01109_ Connecting with Terminal... 01109_ ALERT: Suspicious activity at Terminal A012. Dispatching Investigation squad. 01119_ ALERT: Security rotation in progress. 01123_ Penetrated by Slug. 01129_ The Access Shell folds into the floor. 01129_ EXIT=FOUND Map ----- +----------------------------------------------------+ | ?????????????????????????????????????????????????? | | ?????????????????????????????????????????????????? | | ?????????????????????????????????????????????????? | | ?????????????????????????????????????????????????? | | ?????????????????????????????????????????????????? | | ?????????????????????????????????????????????????? | | ?????????????????????????????????????????????????? | | ??????????????????????????????????????? ?????????? | | ?????????????????????????????????????? ????????? | | ?????????????????????????????????????? ????????? | | ?????????????????????????????????????? ????????? | | ?????????????????????????????????????? #???????? | | ?????????????????????????????????????? ##???????? | | ????????????????????????????????????## ##???????? | | ????????????????????????????????????## ##???????? | | ????????????????????????????????????## ##???????? | | ????????????????????????????????????## ##???????? | | ????????????????????????????????????## ##???????? | | ????????????????????????????#####???## ##???????? | | ???????????????????################### ##???????? | | ???????????????????########### ####### ##???????? | | ???????????????????"" ##???????? | | ????????????????????" ##???????? | | ????????????????????" ##???????? | | ????????????????????" ##???????? | | ????????????????????" "@ ##???????? | | ????????????????????" "" ##???????? | | ????????????????????" ##???????? | | ????????????????????" ##???????? | | ????????????????????" """ """ ##???????? | | ???????????????????"" """T""" ##???????? | | ???????????????????########### ####### ##???????? | | ???????????????????################### ##???????? | | ????????????????????????????#####???## ##???????? | | ????????????????????????????????????## ###??????? | | ????????????????????????????????????## ###??????? | | ????????????????????????????????????## H"##??????? | | ????????????????????????????????????## ###??????? | | ????????????????????????????????????## ###??????? | | ????????????????????????????########## ###??????? | | ????????????????????????????######### ##??????? | | # ???????############### ##??????? | | ##+#####???????############### ##??????? | | ##???????## # ##### ######### | | ##???????## # ################## | | ##???????## [ # # ## | | ########### " + + ## | | ########### """" # # " " ## | | + + """"" # # """ """ ## | | " ########### """"" # # """ """ ## | +----------------------------------------------------+ Best States ------------- Heat Dissipation 52 Coolant Potential 50 Energy Generation 40 Energy Capacity 400 Matter Stores 300 Matter Capacity 300 Sight Range 22 Terrain Scan Density 10 Corruption Block 20 Evasion (%) 66 Recoil Reduction 2 Offensive Hacking 30 Defensive Hacking 10 Item Schematics ----------------- None Robot Schematics ------------------ None Fabricated ------------ Nothing Repaired ---------- Nothing Studied --------- Mic. Nuclear Core | -5/Factory | Hacked Cesium-ion Thruster | -5/Factory | Hacked Katana | -5/Factory | Hacked Mic. Antimatter Reactor | -2/Research | Hacked Alien Tech Used ----------------- None Achievements -------------- None Challenges ------------ None Game ------ Seed LightpackFissionHumpback Manual? 0 Play Time 00:33:35 Cumulative 395.1 hours Start 2026.09.04 @ 10:37:50 End 2026.09.04 @ 11:06:14 Sessions 1 Manual Loads 0 Difficulty Rogue Special Mode None Game No. 189 Rogue 189 Adventurer 0 Explorer 0 Win Type 0 Total 41 Types 20/1/9/2/5/1/1/0/0/2 Lore% 89 Gallery% 80 Achievement% 87 Wizard Run 0 Options --------- Layout 1 ASCII 0 Keyboard 0 Movement Numpad Keybinds 0 Fullscreen 1 Font 24/Smallcaps Map View 50x35 Zoom Use 0% Tactical HUD 1 Map Filters NONE Filters NONE Steam 1 RUN: 0042519d-23cc-4341-9ca2-ca749d9b6966